[Event "Titled Tuesday Blitz June 27 Early 2023"]
[White "Liu, Xiangyi"]
[Black "Quirke, Jeffrey"]
[WhiteFideId "8605718"]
[BlackFideId "2013029"]
[WhiteElo "2731"]
[BlackElo "2228"]
[Result "1-0"]
[Round "5"]
[TimeControl "180+2"]
[Date "2023.06.27"]
[WhiteClock "0:00:25"]
[BlackClock "0:00:00"]
[Board "161"]

1. b3 {[%clk 0:03:00]}  d5 {[%clk 0:02:54]} 2. Bb2 {[%clk 0:03:00]}  Nf6 {[%clk 0:02:53]} 3. f4 {[%clk 0:02:59]}  Bf5 {[%clk 0:02:49]} 4. Nf3 {[%clk 0:02:59]}  e6 {[%clk 0:02:49]} 5. e3 {[%clk 0:02:57]}  Be7 {[%clk 0:02:38]} 6. h3 {[%clk 0:02:56]}  h5 {[%clk 0:02:37]} 7. d3 {[%clk 0:02:47]}  a6 {[%clk 0:02:30]} 8. Nbd2 {[%clk 0:02:46]}  c5 {[%clk 0:02:28]} 9. Qe2 {[%clk 0:02:41]}  Nc6 {[%clk 0:02:16]} 10. e4 {[%clk 0:02:40]}  Bh7 {[%clk 0:02:09]} 11. O-O-O {[%clk 0:01:35]}  dxe4 {[%clk 0:02:07]} 12. dxe4 {[%clk 0:01:29]}  Qc7 {[%clk 0:02:07]} 13. Ne5 {[%clk 0:01:10]}  Nxe5 {[%clk 0:01:54]} 14. Bxe5 {[%clk 0:01:07]}  Qc6 {[%clk 0:01:50]} 15. Bxf6 {[%clk 0:00:57]}  gxf6 {[%clk 0:01:27]} 16. Qxh5 {[%clk 0:00:55]}  O-O-O {[%clk 0:01:04]} 17. Qf3 {[%clk 0:00:54]}  b5 {[%clk 0:00:44]} 18. c4 {[%clk 0:00:51]}  b4 {[%clk 0:00:42]} 19. Bd3 {[%clk 0:00:49]}  Kc7 {[%clk 0:00:23]} 20. Bc2 {[%clk 0:00:48]}  Rd4 {[%clk 0:00:20]} 21. Qe3 {[%clk 0:00:43]}  Rhd8 {[%clk 0:00:18]} 22. Rhe1 {[%clk 0:00:39]}  a5 {[%clk 0:00:18]} 23. Nf3 {[%clk 0:00:37]}  Rxd1+ {[%clk 0:00:17]} 24. Rxd1 {[%clk 0:00:37]}  Rxd1+ {[%clk 0:00:18]} 25. Kxd1 {[%clk 0:00:38]}  Bd6 {[%clk 0:00:10]} 26. Kc1 {[%clk 0:00:29]}  Kb6 {[%clk 0:00:06]} 27. g4 {[%clk 0:00:27]}  Be7 {[%clk 0:00:04]} 28. f5 {[%clk 0:00:26]}  Qd6 {[%clk 0:00:04]} 29. e5 {[%clk 0:00:24]}  fxe5 {[%clk 0:00:03]} 30. Qxe5 {[%clk 0:00:25]}  Qxe5 {[%clk 0:00:02]} 31. Nxe5 {[%clk 0:00:26]}  Bg5+ {[%clk 0:00:00]} 32. Kd1 {[%clk 0:00:25]} 1-0


[Site "https://www.chess.com"]

[Event "Titled Tuesday Blitz June 27 Early 2023"]
[White "StiffMaster1"]
[Black "Vasques, Antonio Pedro Freixial"]
[BlackFideId "1908332"]
[WhiteElo "2574"]
[BlackElo "2347"]
[Result "0-1"]
[Round "5"]
[TimeControl "180+2"]
[Date "2023.06.27"]
[WhiteClock "0:00:20"]
[BlackClock "0:00:20"]
[Board "165"]

1. Nf3 {[%clk 0:03:00]}  Nf6 {[%clk 0:02:58]} 2. g3 {[%clk 0:03:00]}  c5 {[%clk 0:02:55]} 3. Bg2 {[%clk 0:03:01]}  d5 {[%clk 0:02:55]} 4. O-O {[%clk 0:03:02]}  Nc6 {[%clk 0:02:54]} 5. c4 {[%clk 0:03:02]}  d4 {[%clk 0:02:49]} 6. e3 {[%clk 0:03:02]}  g6 {[%clk 0:02:42]} 7. exd4 {[%clk 0:03:01]}  cxd4 {[%clk 0:02:37]} 8. d3 {[%clk 0:03:01]}  Bg7 {[%clk 0:02:36]} 9. Na3 {[%clk 0:03:00]}  O-O {[%clk 0:02:32]} 10. Re1 {[%clk 0:02:57]}  Bf5 {[%clk 0:02:31]} 11. Nc2 {[%clk 0:02:56]}  Re8 {[%clk 0:02:27]} 12. b4 {[%clk 0:02:56]}  a6 {[%clk 0:02:12]} 13. a4 {[%clk 0:02:49]}  Nd7 {[%clk 0:02:03]} 14. b5 {[%clk 0:02:45]}  axb5 {[%clk 0:02:00]} 15. axb5 {[%clk 0:02:46]}  Rxa1 {[%clk 0:01:59]} 16. Nxa1 {[%clk 0:02:47]}  Nce5 {[%clk 0:01:50]} 17. Nxe5 {[%clk 0:02:46]}  Nxe5 {[%clk 0:01:49]} 18. Rxe5 {[%clk 0:02:40]}  Bxe5 {[%clk 0:01:39]} 19. Bxb7 {[%clk 0:02:31]}  Rf8 {[%clk 0:01:36]} 20. Nb3 {[%clk 0:02:30]}  Qb6 {[%clk 0:01:33]} 21. Bc6 {[%clk 0:02:26]}  Rc8 {[%clk 0:01:25]} 22. c5 {[%clk 0:02:06]}  Qb8 {[%clk 0:01:14]} 23. Na5 {[%clk 0:01:45]}  Qa7 {[%clk 0:01:11]} 24. Nb3 {[%clk 0:01:41]}  Be6 {[%clk 0:01:09]} 25. b6 {[%clk 0:01:34]}  Qa2 {[%clk 0:01:06]} 26. Nxd4 {[%clk 0:01:27]}  Bxd4 {[%clk 0:01:05]} 27. b7 {[%clk 0:01:28]}  Qxf2+ {[%clk 0:00:59]} 28. Kh1 {[%clk 0:01:28]}  Rxc6 {[%clk 0:00:51]} 29. b8=Q+ {[%clk 0:01:28]}  Kg7 {[%clk 0:00:51]} 30. Bh6+ {[%clk 0:01:06]}  Kxh6 {[%clk 0:00:25]} 31. Qf8+ {[%clk 0:01:00]}  Bg7 {[%clk 0:00:24]} 32. Qd8 {[%clk 0:00:20]}  Rxc5 {[%clk 0:00:20]} 0-1


[Site "https://www.chess.com"]

[Event "Titled Tuesday Blitz June 27 Early 2023"]
[White "Nithyalakshmi, Sivanesan"]
[Black "Pinheiro, Iung Alicio de O."]
[WhiteFideId "5706955"]
[BlackFideId "2104350"]
[WhiteElo "2343"]
[BlackElo "2568"]
[Result "0-1"]
[Round "5"]
[TimeControl "180+2"]
[Date "2023.06.27"]
[WhiteClock "0:00:15"]
[BlackClock "0:00:09"]
[Board "167"]

1. e4 {[%clk 0:03:00]}  e5 {[%clk 0:02:56]} 2. Nf3 {[%clk 0:03:00]}  Nc6 {[%clk 0:02:56]} 3. d4 {[%clk 0:02:59]}  exd4 {[%clk 0:02:55]} 4. Nxd4 {[%clk 0:02:59]}  Bb4+ {[%clk 0:02:56]} 5. c3 {[%clk 0:02:56]}  Bc5 {[%clk 0:02:56]} 6. Be3 {[%clk 0:02:48]}  Bb6 {[%clk 0:02:50]} 7. Bc4 {[%clk 0:02:40]}  Nf6 {[%clk 0:02:44]} 8. Nd2 {[%clk 0:02:37]}  O-O {[%clk 0:02:43]} 9. O-O {[%clk 0:02:35]}  d5 {[%clk 0:02:41]} 10. exd5 {[%clk 0:02:25]}  Nxd5 {[%clk 0:02:39]} 11. Nxc6 {[%clk 0:02:24]}  bxc6 {[%clk 0:02:39]} 12. Bxb6 {[%clk 0:02:22]}  axb6 {[%clk 0:02:34]} 13. h3 {[%clk 0:02:15]}  Nf4 {[%clk 0:02:16]} 14. Nf3 {[%clk 0:02:00]}  Qf6 {[%clk 0:02:08]} 15. Qd4 {[%clk 0:01:55]}  Nxh3+ {[%clk 0:02:02]} 16. Kh2 {[%clk 0:01:48]}  Qh6 {[%clk 0:01:33]} 17. Nh4 {[%clk 0:01:37]}  Nf4 {[%clk 0:01:12]} 18. g3 {[%clk 0:01:35]}  g5 {[%clk 0:01:08]} 19. Rh1 {[%clk 0:01:29]}  Ne6 {[%clk 0:00:44]} 20. Qe3 {[%clk 0:00:53]}  Kg7 {[%clk 0:00:28]} 21. Kg2 {[%clk 0:00:45]}  gxh4 {[%clk 0:00:27]} 22. Qxh6+ {[%clk 0:00:38]}  Kxh6 {[%clk 0:00:28]} 23. Rxh4+ {[%clk 0:00:39]}  Kg7 {[%clk 0:00:27]} 24. Rah1 {[%clk 0:00:39]}  Rh8 {[%clk 0:00:27]} 25. Rg4+ {[%clk 0:00:39]}  Kf8 {[%clk 0:00:27]} 26. f3 {[%clk 0:00:37]}  Ra5 {[%clk 0:00:24]} 27. b4 {[%clk 0:00:36]}  Re5 {[%clk 0:00:22]} 28. Kf2 {[%clk 0:00:36]}  Ng7 {[%clk 0:00:16]} 29. Rgh4 {[%clk 0:00:35]}  Be6 {[%clk 0:00:15]} 30. Bd3 {[%clk 0:00:33]}  h5 {[%clk 0:00:14]} 31. a4 {[%clk 0:00:32]}  Bd5 {[%clk 0:00:12]} 32. Rf4 {[%clk 0:00:31]}  Be6 {[%clk 0:00:11]} 33. Ra1 {[%clk 0:00:28]}  Ke7 {[%clk 0:00:11]} 34. a5 {[%clk 0:00:28]}  Ra8 {[%clk 0:00:11]} 35. a6 {[%clk 0:00:28]}  Ne8 {[%clk 0:00:11]} 36. Rd4 {[%clk 0:00:27]}  Nd6 {[%clk 0:00:11]} 37. Rh4 {[%clk 0:00:26]}  c5 {[%clk 0:00:11]} 38. b5 {[%clk 0:00:25]}  c4 {[%clk 0:00:10]} 39. Be2 {[%clk 0:00:23]}  Rxb5 {[%clk 0:00:10]} 40. Ke3 {[%clk 0:00:19]}  Ra5 {[%clk 0:00:09]} 41. Rd1 {[%clk 0:00:18]}  R8xa6 {[%clk 0:00:08]} 42. Rf4 {[%clk 0:00:15]}  Nf5+ {[%clk 0:00:08]} 43. Kf2 {[%clk 0:00:16]}  Ra2 {[%clk 0:00:08]} 44. Kf1 {[%clk 0:00:15]}  Ne3+ {[%clk 0:00:08]} 45. Ke1 {[%clk 0:00:15]}  Nxd1 {[%clk 0:00:09]} 46. Kxd1 {[%clk 0:00:15]}  Ra1+ {[%clk 0:00:09]} 47. Kc2 {[%clk 0:00:15]}  R6a2# {[%clk 0:00:09]} 0-1


[Site "https://www.chess.com"]

[Event "Titled Tuesday Blitz June 27 Early 2023"]
[White "Davidson, Kevin"]
[Black "Lehtosaari, Mauri"]
[WhiteFideId "2056810"]
[BlackFideId "501999"]
[WhiteElo "2314"]
[BlackElo "2510"]
[Result "1-0"]
[Round "5"]
[TimeControl "180+2"]
[Date "2023.06.27"]
[WhiteClock "0:00:27"]
[BlackClock "0:00:05"]
[Board "170"]

1. e4 {[%clk 0:03:00]}  c5 {[%clk 0:02:59]} 2. Nf3 {[%clk 0:03:00]}  e6 {[%clk 0:02:59]} 3. d4 {[%clk 0:03:00]}  cxd4 {[%clk 0:03:00]} 4. Nxd4 {[%clk 0:03:01]}  Qb6 {[%clk 0:03:00]} 5. Nb3 {[%clk 0:03:00]}  Qc7 {[%clk 0:03:00]} 6. Nc3 {[%clk 0:03:00]}  a6 {[%clk 0:03:00]} 7. g3 {[%clk 0:03:00]}  Nf6 {[%clk 0:03:00]} 8. Bg2 {[%clk 0:03:00]}  Bb4 {[%clk 0:02:58]} 9. Bd2 {[%clk 0:02:55]}  Nc6 {[%clk 0:02:55]} 10. O-O {[%clk 0:02:55]}  O-O {[%clk 0:02:51]} 11. f4 {[%clk 0:02:53]}  d6 {[%clk 0:02:49]} 12. g4 {[%clk 0:02:40]}  b5 {[%clk 0:02:27]} 13. g5 {[%clk 0:02:38]}  Nd7 {[%clk 0:02:26]} 14. a4 {[%clk 0:02:35]}  bxa4 {[%clk 0:02:23]} 15. Nxa4 {[%clk 0:02:30]}  Bxd2 {[%clk 0:02:22]} 16. Qxd2 {[%clk 0:02:31]}  Bb7 {[%clk 0:02:20]} 17. Rad1 {[%clk 0:02:14]}  Nb6 {[%clk 0:01:58]} 18. Nxb6 {[%clk 0:01:58]}  Qxb6+ {[%clk 0:01:59]} 19. Qf2 {[%clk 0:01:55]}  Qxf2+ {[%clk 0:01:50]} 20. Rxf2 {[%clk 0:01:56]}  Rfd8 {[%clk 0:01:46]} 21. Rfd2 {[%clk 0:01:55]}  e5 {[%clk 0:01:38]} 22. f5 {[%clk 0:01:45]}  Rdc8 {[%clk 0:00:59]} 23. Rxd6 {[%clk 0:01:38]}  a5 {[%clk 0:00:26]} 24. Nc5 {[%clk 0:01:29]}  Rab8 {[%clk 0:00:21]} 25. Nxb7 {[%clk 0:01:27]}  Rxb7 {[%clk 0:00:21]} 26. Rxc6 {[%clk 0:01:26]}  Rcb8 {[%clk 0:00:20]} 27. b3 {[%clk 0:01:26]}  h6 {[%clk 0:00:21]} 28. h4 {[%clk 0:01:25]}  a4 {[%clk 0:00:21]} 29. bxa4 {[%clk 0:01:24]}  Rb2 {[%clk 0:00:21]} 30. Ra1 {[%clk 0:01:20]}  Ra8 {[%clk 0:00:19]} 31. a5 {[%clk 0:01:19]}  hxg5 {[%clk 0:00:20]} 32. hxg5 {[%clk 0:01:19]}  Kh7 {[%clk 0:00:20]} 33. a6 {[%clk 0:01:18]}  g6 {[%clk 0:00:20]} 34. fxg6+ {[%clk 0:01:15]}  Kg7 {[%clk 0:00:17]} 35. gxf7 {[%clk 0:01:14]}  Kxf7 {[%clk 0:00:18]} 36. Bh3 {[%clk 0:01:08]}  Kg7 {[%clk 0:00:15]} 37. Bf5 {[%clk 0:01:08]}  Ra7 {[%clk 0:00:14]} 38. Kf2 {[%clk 0:01:03]}  Rb8 {[%clk 0:00:12]} 39. Rh1 {[%clk 0:00:58]}  Kg8 {[%clk 0:00:12]} 40. Rg6+ {[%clk 0:00:52]}  Kf8 {[%clk 0:00:09]} 41. Rh8+ {[%clk 0:00:50]}  Kf7 {[%clk 0:00:10]} 42. Rf6+ {[%clk 0:00:50]}  Kg7 {[%clk 0:00:10]} 43. Rh7+ {[%clk 0:00:36]}  Kg8 {[%clk 0:00:10]} 44. Rxa7 {[%clk 0:00:36]}  Rd8 {[%clk 0:00:07]} 45. Rd7 {[%clk 0:00:31]}  Ra8 {[%clk 0:00:06]} 46. a7 {[%clk 0:00:30]}  Kh8 {[%clk 0:00:05]} 47. Rb6 {[%clk 0:00:29]}  Rf8 {[%clk 0:00:03]} 48. Rb8 {[%clk 0:00:26]}  Kg8 {[%clk 0:00:04]} 49. Rxf8+ {[%clk 0:00:26]}  Kxf8 {[%clk 0:00:05]} 50. a8=Q# {[%clk 0:00:27]} 1-0


[Site "https://www.chess.com"]

[Event "Titled Tuesday Blitz June 27 Early 2023"]
[White "Gamayev, Oleg"]
[Black "Osinovsky, Stepan"]
[WhiteFideId "2802813"]
[BlackFideId "4157354"]
[WhiteElo "2506"]
[BlackElo "2312"]
[Result "1-0"]
[Round "5"]
[TimeControl "180+2"]
[Date "2023.06.27"]
[WhiteClock "0:01:41"]
[BlackClock "0:00:00"]
[Board "171"]

1. d3 {[%clk 0:02:58]}  g6 {[%clk 0:02:59]} 2. e4 {[%clk 0:02:59]}  Bg7 {[%clk 0:02:58]} 3. Nf3 {[%clk 0:03:00]}  e5 {[%clk 0:02:54]} 4. Be2 {[%clk 0:02:59]}  d6 {[%clk 0:02:51]} 5. O-O {[%clk 0:03:00]}  h6 {[%clk 0:02:48]} 6. b4 {[%clk 0:02:59]}  f5 {[%clk 0:02:45]} 7. Bb2 {[%clk 0:02:59]}  Nf6 {[%clk 0:02:41]} 8. Nbd2 {[%clk 0:02:59]}  O-O {[%clk 0:02:37]} 9. c4 {[%clk 0:02:58]}  Qe8 {[%clk 0:02:14]} 10. c5 {[%clk 0:02:57]}  Nh5 {[%clk 0:01:40]} 11. cxd6 {[%clk 0:02:55]}  cxd6 {[%clk 0:01:39]} 12. Nc4 {[%clk 0:02:55]}  Rf6 {[%clk 0:01:07]} 13. exf5 {[%clk 0:02:47]}  Nf4 {[%clk 0:01:06]} 14. g3 {[%clk 0:02:39]}  Nxe2+ {[%clk 0:00:54]} 15. Qxe2 {[%clk 0:02:38]}  Bxf5 {[%clk 0:00:53]} 16. d4 {[%clk 0:02:28]}  Bg4 {[%clk 0:00:48]} 17. Ncd2 {[%clk 0:02:20]}  e4 {[%clk 0:00:42]} 18. Rfe1 {[%clk 0:02:17]}  Qf7 {[%clk 0:00:14]} 19. Qxe4 {[%clk 0:02:11]}  Bxf3 {[%clk 0:00:10]} 20. Qe8+ {[%clk 0:02:07]}  Kh7 {[%clk 0:00:06]} 21. d5 {[%clk 0:02:01]}  Bxd5 {[%clk 0:00:01]} 22. Bxf6 {[%clk 0:01:55]}  Qxf6 {[%clk 0:00:00]} 23. Rac1 {[%clk 0:01:41]} 1-0


[Site "https://www.chess.com"]

[Event "Titled Tuesday Blitz June 27 Early 2023"]
[White "Bueno, Alfeu Junior Varela"]
[Black "Shubenkova, Veronika"]
[WhiteFideId "2108879"]
[BlackFideId "44124040"]
[WhiteElo "2313"]
[BlackElo "2506"]
[Result "0-1"]
[Round "5"]
[TimeControl "180+2"]
[Date "2023.06.27"]
[WhiteClock "0:00:00"]
[BlackClock "0:01:30"]
[Board "172"]

1. e4 {[%clk 0:03:00]}  e6 {[%clk 0:03:00]} 2. d4 {[%clk 0:03:00]}  d5 {[%clk 0:03:00]} 3. Nd2 {[%clk 0:03:01]}  Nf6 {[%clk 0:02:59]} 4. Bd3 {[%clk 0:02:59]}  Be7 {[%clk 0:02:59]} 5. Ne2 {[%clk 0:02:55]}  c5 {[%clk 0:02:58]} 6. e5 {[%clk 0:02:55]}  Nfd7 {[%clk 0:02:58]} 7. c3 {[%clk 0:02:55]}  Nc6 {[%clk 0:02:58]} 8. f4 {[%clk 0:02:50]}  a6 {[%clk 0:02:57]} 9. O-O {[%clk 0:02:45]}  b5 {[%clk 0:02:57]} 10. f5 {[%clk 0:02:43]}  Nf8 {[%clk 0:02:54]} 11. fxe6 {[%clk 0:02:34]}  Bxe6 {[%clk 0:02:54]} 12. Nf3 {[%clk 0:02:28]}  Ng6 {[%clk 0:02:53]} 13. Qe1 {[%clk 0:02:24]}  Qb6 {[%clk 0:02:51]} 14. Kh1 {[%clk 0:02:22]}  O-O-O {[%clk 0:02:50]} 15. dxc5 {[%clk 0:02:13]}  Bxc5 {[%clk 0:02:44]} 16. b4 {[%clk 0:02:06]}  Be3 {[%clk 0:02:35]} 17. Ned4 {[%clk 0:01:54]}  Bxd4 {[%clk 0:02:34]} 18. cxd4 {[%clk 0:01:49]}  Kb8 {[%clk 0:02:28]} 19. a4 {[%clk 0:01:47]}  Bg4 {[%clk 0:02:17]} 20. axb5 {[%clk 0:01:44]}  axb5 {[%clk 0:02:17]} 21. Ng5 {[%clk 0:01:19]}  Be6 {[%clk 0:02:14]} 22. Be3 {[%clk 0:01:09]}  Rd7 {[%clk 0:02:09]} 23. Qg3 {[%clk 0:00:57]}  Rc8 {[%clk 0:01:52]} 24. Ra3 {[%clk 0:00:48]}  Nxb4 {[%clk 0:01:49]} 25. Rb1 {[%clk 0:00:38]}  Nxd3 {[%clk 0:01:48]} 26. Rxd3 {[%clk 0:00:38]}  Rb7 {[%clk 0:01:46]} 27. Rdb3 {[%clk 0:00:35]}  Qc6 {[%clk 0:01:42]} 28. h4 {[%clk 0:00:34]}  Ne7 {[%clk 0:01:40]} 29. Nxf7 {[%clk 0:00:29]}  Nf5 {[%clk 0:01:38]} 30. Qf4 {[%clk 0:00:19]}  Rxf7 {[%clk 0:01:36]} 31. Rxb5+ {[%clk 0:00:18]}  Ka8 {[%clk 0:01:37]} 32. Bg1 {[%clk 0:00:14]}  Ra7 {[%clk 0:01:34]} 33. Qd2 {[%clk 0:00:13]}  Ng3+ {[%clk 0:01:32]} 34. Kh2 {[%clk 0:00:00]}  Qxb5 {[%clk 0:01:30]} 0-1


[Site "https://www.chess.com"]

[Event "Titled Tuesday Blitz June 27 Early 2023"]
[White "Kielinkei"]
[Black "Zaksaite, Salomeja"]
[BlackFideId "12801496"]
[WhiteElo "2464"]
[BlackElo "2289"]
[Result "1-0"]
[Round "5"]
[TimeControl "180+2"]
[Date "2023.06.27"]
[WhiteClock "0:00:04"]
[BlackClock "0:00:00"]
[Board "177"]

1. c4 {[%clk 0:03:00]}  Nf6 {[%clk 0:02:55]} 2. Nc3 {[%clk 0:03:00]}  g6 {[%clk 0:02:55]} 3. e4 {[%clk 0:02:59]}  Bg7 {[%clk 0:02:56]} 4. g3 {[%clk 0:02:57]}  d6 {[%clk 0:02:53]} 5. Bg2 {[%clk 0:02:57]}  c5 {[%clk 0:02:53]} 6. Nge2 {[%clk 0:02:57]}  Nc6 {[%clk 0:02:53]} 7. O-O {[%clk 0:02:57]}  O-O {[%clk 0:02:52]} 8. d3 {[%clk 0:02:57]}  a6 {[%clk 0:02:35]} 9. f4 {[%clk 0:02:55]}  Rb8 {[%clk 0:02:33]} 10. a4 {[%clk 0:02:55]}  Ne8 {[%clk 0:02:27]} 11. Be3 {[%clk 0:02:50]}  Nc7 {[%clk 0:02:25]} 12. d4 {[%clk 0:02:47]}  cxd4 {[%clk 0:02:21]} 13. Nxd4 {[%clk 0:02:48]}  Nxd4 {[%clk 0:02:20]} 14. Bxd4 {[%clk 0:02:49]}  b5 {[%clk 0:02:16]} 15. Bxg7 {[%clk 0:02:39]}  Kxg7 {[%clk 0:02:14]} 16. axb5 {[%clk 0:02:30]}  axb5 {[%clk 0:02:14]} 17. cxb5 {[%clk 0:02:21]}  Nxb5 {[%clk 0:02:12]} 18. Nxb5 {[%clk 0:02:22]}  Rxb5 {[%clk 0:02:12]} 19. Qd4+ {[%clk 0:02:22]}  e5 {[%clk 0:02:08]} 20. fxe5 {[%clk 0:01:51]}  dxe5 {[%clk 0:02:08]} 21. Qc3 {[%clk 0:01:51]}  Be6 {[%clk 0:01:52]} 22. b4 {[%clk 0:01:45]}  Qd4+ {[%clk 0:01:47]} 23. Qxd4 {[%clk 0:01:43]}  exd4 {[%clk 0:01:48]} 24. Rfd1 {[%clk 0:00:59]}  Rxb4 {[%clk 0:01:37]} 25. Rd2 {[%clk 0:01:00]}  Kf6 {[%clk 0:01:34]} 26. Ra5 {[%clk 0:00:55]}  Rd8 {[%clk 0:01:20]} 27. e5+ {[%clk 0:00:54]}  Kf5 {[%clk 0:01:20]} 28. Rf2+ {[%clk 0:00:33]}  Kg5 {[%clk 0:00:45]} 29. h4+ {[%clk 0:00:32]}  Kh6 {[%clk 0:00:42]} 30. Rd2 {[%clk 0:00:31]}  d3 {[%clk 0:00:35]} 31. Kf2 {[%clk 0:00:31]}  g5 {[%clk 0:00:28]} 32. hxg5+ {[%clk 0:00:29]}  Kxg5 {[%clk 0:00:29]} 33. Ra3 {[%clk 0:00:27]}  Rbd4 {[%clk 0:00:16]} 34. Ke3 {[%clk 0:00:26]}  Bf5 {[%clk 0:00:15]} 35. Bf1 {[%clk 0:00:24]}  Kg4 {[%clk 0:00:12]} 36. Kf2 {[%clk 0:00:17]}  R8d7 {[%clk 0:00:09]} 37. Bg2 {[%clk 0:00:17]}  Rc4 {[%clk 0:00:06]} 38. Bf3+ {[%clk 0:00:16]}  Kg5 {[%clk 0:00:06]} 39. Ke3 {[%clk 0:00:15]}  Rc2 {[%clk 0:00:05]} 40. Ra6 {[%clk 0:00:10]}  Rxd2 {[%clk 0:00:06]} 41. Kxd2 {[%clk 0:00:11]}  Rc7 {[%clk 0:00:05]} 42. Rf6 {[%clk 0:00:08]}  Rc2+ {[%clk 0:00:04]} 43. Ke3 {[%clk 0:00:09]}  d2 {[%clk 0:00:03]} 44. Bd1 {[%clk 0:00:09]}  Rc1 {[%clk 0:00:03]} 45. Kxd2 {[%clk 0:00:08]}  Ra1 {[%clk 0:00:02]} 46. Rxf7 {[%clk 0:00:08]}  Ra3 {[%clk 0:00:02]} 47. g4 {[%clk 0:00:05]}  Be6 {[%clk 0:00:00]} 48. Rxh7 {[%clk 0:00:04]} 1-0


[Site "https://www.chess.com"]

[Event "Titled Tuesday Blitz June 27 Early 2023"]
[White "Antonio, Jorge Carlos"]
[Black "Corredor Castellanos, Camilo"]
[WhiteFideId "113190"]
[BlackFideId "4425871"]
[WhiteElo "2284"]
[BlackElo "2462"]
[Result "0-1"]
[Round "5"]
[TimeControl "180+2"]
[Date "2023.06.27"]
[WhiteClock "0:00:22"]
[BlackClock "0:01:08"]
[Board "178"]

1. d4 {[%clk 0:03:00]}  Nf6 {[%clk 0:02:56]} 2. Nf3 {[%clk 0:03:00]}  d5 {[%clk 0:02:55]} 3. Bf4 {[%clk 0:02:59]}  c5 {[%clk 0:02:55]} 4. e3 {[%clk 0:02:59]}  Nc6 {[%clk 0:02:55]} 5. c3 {[%clk 0:02:59]}  Qb6 {[%clk 0:02:55]} 6. Qb3 {[%clk 0:02:52]}  c4 {[%clk 0:02:55]} 7. Qxb6 {[%clk 0:02:45]}  axb6 {[%clk 0:02:56]} 8. Nbd2 {[%clk 0:02:43]}  Bf5 {[%clk 0:02:43]} 9. Be2 {[%clk 0:02:38]}  h6 {[%clk 0:02:43]} 10. O-O {[%clk 0:02:37]}  e6 {[%clk 0:02:40]} 11. Ne5 {[%clk 0:02:35]}  b5 {[%clk 0:02:35]} 12. a3 {[%clk 0:02:34]}  Be7 {[%clk 0:02:31]} 13. f3 {[%clk 0:02:32]}  Nh5 {[%clk 0:02:24]} 14. Bg3 {[%clk 0:02:31]}  Nxg3 {[%clk 0:02:24]} 15. hxg3 {[%clk 0:02:30]}  Nxe5 {[%clk 0:02:24]} 16. dxe5 {[%clk 0:02:29]}  Bc5 {[%clk 0:02:25]} 17. Kf2 {[%clk 0:02:26]}  Ke7 {[%clk 0:02:21]} 18. Rfd1 {[%clk 0:02:24]}  f6 {[%clk 0:02:04]} 19. exf6+ {[%clk 0:02:23]}  gxf6 {[%clk 0:02:05]} 20. Nf1 {[%clk 0:02:23]}  h5 {[%clk 0:01:59]} 21. Rd2 {[%clk 0:02:12]}  b4 {[%clk 0:01:48]} 22. Rdd1 {[%clk 0:01:59]}  bxc3 {[%clk 0:01:46]} 23. bxc3 {[%clk 0:01:59]}  Bxa3 {[%clk 0:01:39]} 24. e4 {[%clk 0:01:40]}  Bg6 {[%clk 0:01:35]} 25. exd5 {[%clk 0:01:37]}  exd5 {[%clk 0:01:36]} 26. Ke1 {[%clk 0:01:20]}  Rhd8 {[%clk 0:01:29]} 27. Ne3 {[%clk 0:01:11]}  Bf7 {[%clk 0:01:25]} 28. Nf5+ {[%clk 0:01:10]}  Kf8 {[%clk 0:01:26]} 29. f4 {[%clk 0:01:05]}  Bb2 {[%clk 0:01:26]} 30. Rab1 {[%clk 0:01:02]}  Bxc3+ {[%clk 0:01:26]} 31. Kf1 {[%clk 0:01:02]}  Bg6 {[%clk 0:01:20]} 32. Ne3 {[%clk 0:00:54]}  Bxb1 {[%clk 0:01:19]} 33. Rxb1 {[%clk 0:00:52]}  Ra1 {[%clk 0:01:18]} 34. Rxa1 {[%clk 0:00:47]}  Bxa1 {[%clk 0:01:19]} 35. Bxh5 {[%clk 0:00:45]}  b5 {[%clk 0:01:17]} 36. Bf3 {[%clk 0:00:44]}  d4 {[%clk 0:01:18]} 37. Nd5 {[%clk 0:00:44]}  d3 {[%clk 0:01:15]} 38. Ke1 {[%clk 0:00:41]}  Bd4 {[%clk 0:01:13]} 39. g4 {[%clk 0:00:36]}  Re8+ {[%clk 0:01:11]} 40. Kd1 {[%clk 0:00:35]}  Ra8 {[%clk 0:01:09]} 41. f5 {[%clk 0:00:28]}  Ra1+ {[%clk 0:01:08]} 42. Kd2 {[%clk 0:00:27]}  Ra2+ {[%clk 0:01:09]} 43. Kd1 {[%clk 0:00:27]}  c3 {[%clk 0:01:08]} 44. Nb4 {[%clk 0:00:22]}  Ra1# {[%clk 0:01:08]} 0-1


[Site "https://www.chess.com"]

[Event "Titled Tuesday Blitz June 27 Early 2023"]
[White "Georg, Heinz"]
[Black "Begunov, Konstantin"]
[WhiteFideId "4607295"]
[BlackFideId "4118510"]
[WhiteElo "2284"]
[BlackElo "2446"]
[Result "1/2-1/2"]
[Round "5"]
[TimeControl "180+2"]
[Date "2023.06.27"]
[WhiteClock "0:00:33"]
[BlackClock "0:00:15"]
[Board "179"]

1. e4 {[%clk 0:02:34]}  c5 {[%clk 0:02:59]} 2. Nf3 {[%clk 0:02:32]}  d6 {[%clk 0:03:00]} 3. Bb5+ {[%clk 0:02:32]}  Bd7 {[%clk 0:02:59]} 4. Bxd7+ {[%clk 0:02:32]}  Qxd7 {[%clk 0:03:00]} 5. O-O {[%clk 0:02:32]}  Nf6 {[%clk 0:03:00]} 6. Re1 {[%clk 0:02:32]}  Nc6 {[%clk 0:03:00]} 7. c3 {[%clk 0:02:33]}  e6 {[%clk 0:03:01]} 8. d4 {[%clk 0:02:33]}  cxd4 {[%clk 0:03:02]} 9. cxd4 {[%clk 0:02:34]}  d5 {[%clk 0:03:02]} 10. e5 {[%clk 0:02:34]}  Ne4 {[%clk 0:03:03]} 11. Nbd2 {[%clk 0:02:35]}  Nxd2 {[%clk 0:03:02]} 12. Bxd2 {[%clk 0:02:35]}  Bb4 {[%clk 0:03:02]} 13. a3 {[%clk 0:02:34]}  Bxd2 {[%clk 0:03:02]} 14. Qxd2 {[%clk 0:02:34]}  O-O {[%clk 0:03:01]} 15. Rac1 {[%clk 0:02:35]}  Rfc8 {[%clk 0:03:00]} 16. b4 {[%clk 0:02:33]}  Ne7 {[%clk 0:02:50]} 17. Re3 {[%clk 0:02:24]}  Rxc1+ {[%clk 0:02:41]} 18. Qxc1 {[%clk 0:02:23]}  Rc8 {[%clk 0:02:41]} 19. Rc3 {[%clk 0:02:23]}  h6 {[%clk 0:02:26]} 20. g3 {[%clk 0:02:18]}  Rc6 {[%clk 0:02:21]} 21. Rxc6 {[%clk 0:02:14]}  Nxc6 {[%clk 0:02:19]} 22. Qc5 {[%clk 0:02:08]}  b6 {[%clk 0:02:11]} 23. Qc3 {[%clk 0:02:06]}  Ne7 {[%clk 0:02:10]} 24. Kg2 {[%clk 0:01:43]}  g5 {[%clk 0:02:01]} 25. h3 {[%clk 0:01:42]}  Kg7 {[%clk 0:02:01]} 26. g4 {[%clk 0:01:41]}  Ng6 {[%clk 0:01:59]} 27. Kg3 {[%clk 0:01:38]}  Qa4 {[%clk 0:01:57]} 28. h4 {[%clk 0:01:33]}  Nf4 {[%clk 0:01:52]} 29. Qe3 {[%clk 0:00:49]}  Qd1 {[%clk 0:01:31]} 30. hxg5 {[%clk 0:00:48]}  hxg5 {[%clk 0:01:27]} 31. Nxg5 {[%clk 0:00:44]}  Ne2+ {[%clk 0:01:14]} 32. Kg2 {[%clk 0:00:42]}  Nxd4 {[%clk 0:00:59]} 33. Nf3 {[%clk 0:00:37]}  Nxf3 {[%clk 0:00:20]} 34. Qxf3 {[%clk 0:00:37]}  Qd2 {[%clk 0:00:19]} 35. Qf6+ {[%clk 0:00:36]}  Kg8 {[%clk 0:00:20]} 36. Qd8+ {[%clk 0:00:35]}  Kh7 {[%clk 0:00:19]} 37. Qf6 {[%clk 0:00:35]}  Kg8 {[%clk 0:00:15]} 38. Qd8+ {[%clk 0:00:34]}  Kg7 {[%clk 0:00:15]} 39. Qf6+ {[%clk 0:00:34]}  Kf8 {[%clk 0:00:15]} 40. Qd8+ {[%clk 0:00:33]}  Kg7 {[%clk 0:00:15]} 41. Qf6+ {[%clk 0:00:33]} 1/2-1/2


[Site "https://www.chess.com"]